fUSD/lending_fUSD_20260322
["ID","MTS","AMOUNT","RATE_DAILY","PERIOD"]
[408718576,1774168246539,-362.72905046,0.00038889,30]
[408718578,1774168246548,-893.98,0.000389,30]
[408718580,1774168246557,-245.0,0.00038984,30]
[408718582,1774168246567,-160.0,0.00039,120]
[408718584,1774168246575,-279.31,0.000391,30]
[408718586,1774168246585,-908.46,0.00039134,2]
[408718588,1774168246594,-1093.0,0.00039162,7]
[408718590,1774168246607,-1165.19,0.000392,30]
[408718592,1774168246617,-290.26806648,0.00039459,71]
[408718594,1774168246626,-592.52,0.000396,30]
[408718596,1774168246636,-2403.0,0.00039623,11]
[408718598,1774168246646,-1990.0,0.00039726,120]
[408718600,1774168246656,-3514.0,0.00039862,2]
[408718602,1774168246665,-37118.03,0.000399,7]
[408718604,1774168246674,-1093.0,0.00039984,7]
[408718606,1774168246684,-232.08,0.0004,120]
[408718609,1774168246694,-152.0,0.0004,120]
[408718611,1774168246704,-158.0,0.0004,120]
[408718612,1774168246714,-305.91664369,0.0004,120]
[408718614,1774168246724,-1990.0,0.0004,120]
[408718616,1774168246733,-442.44437086,0.0004,120]
[408718618,1774168246744,-330.7516519,0.0004,30]
[408718621,1774168246754,-2189.19506536,0.0004,120]
[408718623,1774168246767,-668.44809243,0.0004,120]
[408718625,1774168246777,-2082.49692819,0.0004,120]
[408718627,1774168246786,-1990.0,0.00040273,120]
[408718629,1774168246799,-1990.0,0.00040547,120]
[408718631,1774168246809,-235.22003134,0.00040627,2]
[408718633,1774168246818,-1093.0,0.00040806,30]
[408718635,1774168246828,-1990.0,0.00040821,120]
[408718637,1774168246838,-639.21748582,0.00041,30]
[408718639,1774168246848,-2126.3,0.00041,30]
[408718641,1774168246857,-2705.49194924,0.00041,30]
[408718643,1774168246867,-3351.6,0.00041068,120]
[408718645,1774168246877,-1797.92411023,0.00041068,120]
[408718647,1774168246886,-1990.0,0.00041095,120]
[408718649,1774168246897,-161.0,0.00041096,2]
[408718651,1774168246906,-180.0,0.00041096,2]
[408718653,1774168246916,-161.0,0.00041096,2]
[408718655,1774168246926,-180.0,0.00041096,2]
[408718657,1774168246936,-161.0,0.00041096,2]
[408718659,1774168246946,-200.0,0.00041096,2]
[408718662,1774168246956,-341.0,0.00041096,2]
[408718664,1774168246965,-498.51,0.00041096,60]
[408718666,1774168246975,-217.47,0.00041096,60]
[408718668,1774168246984,-279.31,0.000411,30]
[408718670,1774168246994,-893.98,0.000411,30]
[408718672,1774168247003,-362.72905046,0.00041111,30]
[408718674,1774168247013,-292.30694738,0.000412,30]
[408718676,1774168247023,-1000.0,0.00041346,3]
[408718678,1774168247032,-1990.0,0.00041369,120]
[408718680,1774168247042,-1093.0,0.00041628,30]
[408718682,1774168247052,-1990.0,0.00041643,120]
[408718684,1774168247061,-200.0,0.00041674,120]
[408718686,1774168247071,-37118.03,0.000417,7]
[408718688,1774168247080,-592.52,0.000417,30]
[408718690,1774168247089,-3807.75747175,0.00041895,28]
[408718692,1774168247099,-1990.0,0.00041917,120]
[408718694,1774168247109,-340.50514948,0.00042,120]
[408718696,1774168247119,-252.43015257,0.00042,30]
[408718697,1774168247128,-1607.96181711,0.00042,14]
[408718700,1774168247139,-1990.0,0.00042191,120]
[408718702,1774168247149,-171.2853,0.000423,2]
[408718704,1774168247158,-150.5,0.00042437,2]
[408718705,1774168247168,-307.59307592,0.00042444,2]
[408718708,1774168247178,-300.0,0.00042444,2]
[408718710,1774168247197,-300.0,0.00042444,2]
[408718713,1774168247206,-300.0,0.00042444,2]
[408718714,1774168247216,-417.11348177,0.00042444,2]
[408718717,1774168247225,-300.0,0.00042444,2]
[408718719,1774168247235,-717.54642308,0.00042444,2]
[408718721,1774168247244,-300.0,0.00042444,2]
[408718723,1774168247254,-300.0,0.00042444,2]
[408718725,1774168247263,-300.0,0.00042444,2]
[408718726,1774168247273,-1086.77526194,0.00042444,2]
[408718729,1774168247283,-300.0,0.00042444,2]
[408718730,1774168247293,-300.0,0.00042444,2]
[408718733,1774168247304,-300.0,0.00042444,2]
[408718735,1774168247314,-300.0,0.00042444,2]
[408718737,1774168247324,-370.01483087,0.00042444,2]
[408718739,1774168247333,-300.0,0.00042444,2]
[408718741,1774168247343,-300.0,0.00042444,2]
[408718743,1774168247353,-300.0,0.00042444,2]
[408718745,1774168247363,-300.0,0.00042444,2]
[408718747,1774168247372,-300.0,0.00042444,2]
[408718749,1774168247382,-300.0,0.00042444,2]
[408718751,1774168247391,-300.0,0.00042444,2]
[408718753,1774168247401,-300.0,0.00042444,2]
[408718755,1774168247412,-300.0,0.00042444,2]
[408718757,1774168247423,-300.0,0.00042444,2]
[408718759,1774168247433,-301.000602,0.00042444,2]
[408718761,1774168247442,-300.0,0.00042444,2]
[408718763,1774168247452,-300.0,0.00042444,2]
[408718765,1774168247463,-300.0,0.00042444,2]
[408718767,1774168247473,-600.11635329,0.00042444,2]
[408718769,1774168247482,-300.0,0.00042444,2]
[408718771,1774168247492,-300.0,0.00042444,2]
[408718772,1774168247502,-300.0,0.00042444,2]
[408718773,1774168247511,-300.0,0.00042444,2]
[408718774,1774168247521,-555.90105714,0.00042444,2]
[408718775,1774168247531,-300.0,0.00042444,2]
[408718776,1774168247540,-300.26795467,0.00042444,2]
[408718777,1774168247550,-300.0,0.00042444,2]
[408718778,1774168247560,-300.0,0.00042444,2]
[408718779,1774168247570,-1138.86212569,0.00042444,2]
[408718780,1774168247580,-307.35924896,0.00042444,2]
[408718781,1774168247590,-300.0,0.00042444,2]
[408718782,1774168247601,-858.24055709,0.00042444,2]
[408718783,1774168247611,-300.0,0.00042444,2]
[408718784,1774168247621,-300.0,0.00042444,2]
[408718785,1774168247631,-300.0,0.00042444,2]
[408718786,1774168247641,-300.0,0.00042444,2]
[408718787,1774168247651,-308.63412797,0.00042444,2]
[408718788,1774168247661,-300.0,0.00042444,2]
[408718789,1774168247671,-300.0,0.00042444,2]
[408718790,1774168247681,-300.0,0.00042444,2]
[408718791,1774168247691,-460.5100828,0.00042444,2]
[408718792,1774168247701,-300.0,0.00042444,2]
[408718793,1774168247710,-300.0,0.00042444,2]
[408718794,1774168247719,-300.0,0.00042444,2]
[408718795,1774168247729,-448.59580951,0.00042444,2]
[408718796,1774168247739,-300.0,0.00042444,2]
[408718797,1774168247749,-300.0,0.00042444,2]
[408718799,1774168247758,-302.71758979,0.00042444,2]
[408718801,1774168247769,-300.0,0.00042444,2]
[408718802,1774168247778,-300.0,0.00042444,2]
[408718803,1774168247788,-300.0,0.00042444,2]
[408718804,1774168247798,-520.90741423,0.00042444,2]
[408718805,1774168247807,-307.59307592,0.00042444,2]
[408718806,1774168247816,-300.0,0.00042444,2]
[408718807,1774168247826,-300.0,0.00042444,2]
[408718808,1774168247835,-300.0,0.00042444,2]
[408718809,1774168247844,-417.11348177,0.00042444,2]
[408718810,1774168247854,-300.0,0.00042444,2]
[408718811,1774168247864,-300.0,0.00042444,2]
[408718812,1774168247874,-717.54642308,0.00042444,2]
[408718813,1774168247884,-300.0,0.00042444,2]
[408718814,1774168247894,-300.0,0.00042444,2]
[408718815,1774168248075,-1086.77526194,0.00042444,2]
[408718816,1774168248086,-300.0,0.00042444,2]
[408718817,1774168248096,-300.0,0.00042444,2]
[408718818,1774168248106,-300.0,0.00042444,2]
[408718819,1774168248116,-300.0,0.00042444,2]
[408718820,1774168248126,-300.0,0.00042444,2]
[408718821,1774168248136,-300.0,0.00042444,2]
[408718822,1774168248146,-300.0,0.00042444,2]
[408718823,1774168248155,-300.0,0.00042444,2]
[408718824,1774168248164,-300.0,0.00042444,2]
[408718825,1774168248174,-300.0,0.00042444,2]
[408718826,1774168248184,-300.0,0.00042444,2]
[408718827,1774168248194,-300.0,0.00042444,2]
[408718828,1774168248205,-300.0,0.00042444,2]
[408718829,1774168248216,-300.0,0.00042444,2]
[408718830,1774168248227,-301.000602,0.00042444,2]
[408718831,1774168248238,-300.0,0.00042444,2]
[408718832,1774168248248,-300.0,0.00042444,2]
[408718833,1774168248260,-300.0,0.00042444,2]
[408718834,1774168248270,-600.11635329,0.00042444,2]
[408718835,1774168248279,-300.0,0.00042444,2]
[408718836,1774168248289,-300.0,0.00042444,2]
[408718837,1774168248298,-300.0,0.00042444,2]
[408718838,1774168248309,-300.0,0.00042444,2]
[408718839,1774168248319,-555.90105714,0.00042444,2]
[408718840,1774168248330,-300.0,0.00042444,2]
[408718841,1774168248340,-300.43949312,0.00042444,2]
[408718842,1774168248351,-300.0,0.00042444,2]
[408718843,1774168248362,-300.0,0.00042444,2]
[408718844,1774168248373,-1138.86212569,0.00042444,2]
[408718845,1774168248382,-307.35924896,0.00042444,2]
[408718846,1774168248391,-300.0,0.00042444,2]
[408718847,1774168248401,-858.24055709,0.00042444,2]
[408718848,1774168248414,-300.0,0.00042444,2]
[408718849,1774168248423,-300.0,0.00042444,2]
[408718850,1774168248432,-300.0,0.00042444,2]
[408718851,1774168248444,-300.0,0.00042444,2]
[408718852,1774168248456,-300.0,0.00042444,2]
[408718853,1774168248465,-308.63412797,0.00042444,2]
[408718854,1774168248475,-300.0,0.00042444,2]
[408718855,1774168248486,-300.0,0.00042444,2]
[408718856,1774168248495,-460.5100828,0.00042444,2]
[408718857,1774168248505,-300.0,0.00042444,2]
[408718858,1774168248515,-300.0,0.00042444,2]
[408718859,1774168248525,-300.0,0.00042444,2]
[408718860,1774168248535,-448.59580951,0.00042444,2]
[408718861,1774168248545,-300.0,0.00042444,2]
[408718862,1774168248554,-302.71758979,0.00042444,2]
[408718863,1774168248564,-300.0,0.00042444,2]
[408718864,1774168248574,-1093.0,0.0004245,30]
[408718865,1774168248584,-1990.0,0.00042465,120]
[408718866,1774168248593,-524.37,0.00042546,120]
[408718867,1774168248603,-198.74,0.00042546,120]
[408718868,1774168248612,-607.91,0.00042546,120]
[408718869,1774168248621,-152.0,0.000426,120]
[408718870,1774168248631,-5800.0,0.00042686,14]
[408718871,1774168248640,-5800.0,0.00042695,14]
[408718872,1774168248650,-508.19462217,0.00042703,14]
[408718873,1774168248660,-5800.0,0.00042703,14]
[408718874,1774168248670,-1990.0,0.00042739,120]
[408718875,1774168248679,-908.46,0.00042854,2]
[408718876,1774168248688,-3514.0,0.00042862,2]
[408718877,1774168248698,-414.26,0.00042961,90]
[408718878,1774168248707,-500.0,0.00043,45]
[408718879,1774168248717,-500.0,0.00043,45]
[408718880,1774168248726,-500.0,0.00043,45]
[408718881,1774168248736,-500.0,0.00043,45]
[408718882,1774168248745,-500.0,0.00043,45]
[408718883,1774168248755,-500.0,0.00043,45]
[408718884,1774168248764,-500.0,0.00043,45]
[408718885,1774168248775,-500.0,0.00043,45]
[408718886,1774168248785,-500.0,0.00043,45]
[408718887,1774168248794,-1340.08363956,0.00043,120]
[408718888,1774168248803,-991.51,0.00043,30]
[408718889,1774168248812,-1990.0,0.00043013,120]
[408718890,1774168248822,-1093.0,0.00043273,30]
[408718891,1774168248831,-1990.0,0.00043287,120]
[408718892,1774168248840,-362.72905046,0.00043333,30]
[408718893,1774168248849,-2126.3,0.000434,30]
[408718894,1774168248860,-233.7498,0.00043498,2]
[408718895,1774168248870,-500.0,0.000435,45]
[408718896,1774168248879,-500.0,0.000435,45]
[408718897,1774168248889,-500.0,0.000435,45]
[408718898,1774168248899,-500.0,0.000435,45]
[408718899,1774168248909,-279.31,0.000435,30]
[408718900,1774168248920,-500.0,0.000435,45]
[408718901,1774168248929,-500.0,0.000435,45]
[408718902,1774168248939,-893.98,0.000435,30]
[408718903,1774168248948,-500.0,0.000435,45]
[408718904,1774168248957,-500.0,0.000435,45]
[408718905,1774168248967,-500.0,0.000435,45]
[408718906,1774168248976,-1896.48343748,0.000435,30]
[408718907,1774168248985,-188.4636242,0.0004356,30]
[408718908,1774168248994,-150.0,0.0004356,30]
[408718909,1774168249003,-1990.0,0.00043561,120]
[408718910,1774168249012,-1990.0,0.00043835,120]
[408718911,1774168249022,-1000.0,0.00043836,18]
[408718912,1774168249031,-500.0,0.00043836,10]
[408718913,1774168249041,-150.0,0.00043836,30]
[408718914,1774168249049,-256.0,0.00043836,30]
[408718915,1774168249058,-156.80204225,0.00043853,2]
[408718916,1774168249068,-1579.48340954,0.00043887,30]
[408718917,1774168249077,-37118.03,0.000439,7]
[408718918,1774168249086,-150.0,0.00043906,30]
[408718919,1774168249095,-6168.56518165,0.00043947,2]
[408718920,1774168249104,-500.0,0.00044,45]
[408718921,1774168249113,-248.0,0.00044,2]
[408718922,1774168249122,-500.0,0.00044,45]
[408718923,1774168249132,-500.0,0.00044,45]
[408718924,1774168249142,-500.0,0.00044,45]
[408718925,1774168249151,-500.0,0.00044,45]
[408718926,1774168249160,-500.0,0.00044,45]
[408718927,1774168249173,-500.0,0.00044,45]
[408718928,1774168249183,-500.0,0.00044,45]
[408718929,1774168249192,-500.0,0.00044,45]
[408718930,1774168249202,-70943.98686584,0.00044,2]
[408718931,1774168249211,-420.11213587,0.00044,120]
[408718932,1774168249220,-1591.08360616,0.00044,120]
[408718933,1774168249229,-185.34314008,0.0004408,2]
[408718934,1774168249238,-1093.0,0.00044095,120]
[408718935,1774168249247,-1990.0,0.00044109,120]
[408718936,1774168249256,-156.80204225,0.00044127,2]
[408718937,1774168249265,-592.52,0.000442,30]
[408718938,1774168249275,-150.0,0.00044251,30]
[408718939,1774168249284,-1990.0,0.00044383,120]
[408718940,1774168249294,-156.80204225,0.00044401,2]
[408718941,1774168249303,-1371.43742876,0.0004444,120]
[408718942,1774168249312,-500.0,0.000445,45]
[408718943,1774168249321,-500.0,0.000445,45]
[408718944,1774168249330,-500.0,0.000445,45]
[408718945,1774168249338,-500.0,0.000445,45]
[408718946,1774168249347,-500.0,0.000445,45]
[408718947,1774168249357,-500.0,0.000445,45]
[408718948,1774168249366,-500.0,0.000445,45]
[408718949,1774168249375,-500.0,0.000445,45]
[408718950,1774168249384,-500.0,0.000445,45]
[408718951,1774168249394,-1000.00000099,0.00044508,2]
[408718952,1774168249403,-494.50541069,0.00044508,2]
[408718953,1774168249415,-150.0,0.00044597,30]
[408718954,1774168249425,-5113.74212955,0.0004465,17]
[408718955,1774168249434,-5000.0,0.0004465,18]
[408718956,1774168249443,-5000.0,0.0004465,12]
[408718957,1774168249452,-5000.0,0.0004465,13]
[408718958,1774168249462,-1990.0,0.00044657,120]
[408718959,1774168249471,-156.80204225,0.00044675,2]
[408718960,1774168249480,-511.3125,0.00044713,30]
[408718961,1774168249490,-273.73948861,0.0004489,120]
[408718962,1774168249499,-515.61896514,0.000449,30]
[408718963,1774168249508,-293.049604,0.000449,27]
[408718964,1774168249518,-1093.0,0.00044917,120]
[408718965,1774168249527,-1990.0,0.00044931,120]
[408718966,1774168249536,-150.0,0.00044943,30]
[408718967,1774168249545,-156.80204225,0.00044948,2]
[408718968,1774168249555,-706.81,0.00045,120]
[408718969,1774168249564,-431.44,0.00045,120]
[408718970,1774168249573,-319.47,0.00045,120]
[408718971,1774168249583,-425.59,0.00045,120]
[408718972,1774168249592,-248.0,0.00045,30]
[408718973,1774168249601,-186.50511899,0.00045,2]
[408718974,1774168249610,-8000.0,0.00045,30]
[408718975,1774168249619,-318.0,0.00045,120]
[408718976,1774168249628,-341.04844941,0.00045,120]
[408718977,1774168249638,-363.98,0.00045,30]
[408718978,1774168249647,-954.80579739,0.00045,120]
[408718979,1774168249656,-1117.78134268,0.00045,120]
[408718980,1774168249666,-156.5438327,0.00045,120]
[408718981,1774168249675,-515.3785488,0.00045,120]
[408718982,1774168249685,-704.06973078,0.00045,120]
[408718983,1774168249695,-336.58130009,0.00045,120]
[408718984,1774168249706,-280.53789047,0.00045,30]
[408718985,1774168249715,-254.06913009,0.00045,120]
[408718986,1774168249724,-489.49014093,0.00045,30]
[408718987,1774168249734,-174.86944759,0.00045,30]
[408718988,1774168249743,-626.04608083,0.00045,120]
[408718989,1774168249752,-462.46747786,0.00045,30]
[408718990,1774168249761,-363.20663348,0.00045,30]
[408718991,1774168249770,-655.60857472,0.00045,2]
[408718992,1774168249780,-782.43147709,0.00045,30]
[408718993,1774168249789,-339.24631758,0.00045,30]
[408718994,1774168249798,-287.506153,0.00045,120]
[408718995,1774168249808,-262.16292694,0.00045,120]
[408718996,1774168249818,-591.95668452,0.00045,120]
[408718997,1774168249828,-1116.61855449,0.00045,120]
[408718998,1774168249837,-666.35696272,0.00045,30]
[408718999,1774168249847,-244.32653283,0.000451,120]
[408719000,1774168249856,-1990.0,0.00045205,120]
[408719001,1774168249866,-180.0,0.00045205,2]
[408719002,1774168249875,-161.0,0.00045205,2]
[408719003,1774168249884,-180.0,0.00045205,2]
[408719004,1774168249894,-161.0,0.00045205,2]
[408719005,1774168249903,-200.0,0.00045205,2]
[408719006,1774168249913,-341.0,0.00045205,2]
[408719007,1774168249922,-156.80204225,0.00045222,2]
[408719008,1774168249931,-150.0,0.00045289,30]
[408719009,1774168249941,-152.0,0.000453,120]
[408719010,1774168249949,-245.32312389,0.000454,30]
[408719011,1774168249958,-1019.01857421,0.00045421,120]
[408719012,1774168249967,-1990.0,0.00045479,120]
[408719013,1774168249977,-156.80204225,0.00045496,2]
[408719014,1774168249986,-362.72905046,0.00045556,30]
[408719015,1774168249995,-1619.18092592,0.0004559,2]
[408719016,1774168250004,-150.0,0.00045634,30]
[408719017,1774168250014,-310.09924817,0.000457,120]
[408719018,1774168250023,-1990.0,0.00045753,120]
[408719019,1774168250032,-156.80204225,0.0004577,2]
[408719020,1774168250041,-165.41737973,0.00045858,107]
[408719021,1774168250050,-3514.0,0.00045862,2]
[408719022,1774168250060,-223.29741829,0.0004588,30]
[408719023,1774168250069,-279.31,0.000459,30]
[408719024,1774168250078,-150.0,0.0004598,30]
[408719025,1774168250089,-677.88460032,0.00045999,120]
[408719026,1774168250098,-500.0,0.00046,45]
[408719027,1774168250107,-248.0,0.00046,30]
[408719028,1774168250117,-787.10595,0.00046,20]
[408719029,1774168250126,-37118.03,0.00046,7]
[408719030,1774168250136,-186.0,0.00046,30]
[408719031,1774168250146,-8000.0,0.00046,30]
[408719032,1774168250155,-1718.0,0.00046,120]
[408719033,1774168250164,-248.56174999,0.00046,120]
[408719034,1774168250174,-307.48060666,0.00046,2]
[408719035,1774168250183,-1292.73947595,0.00046,30]
[408719036,1774168250192,-2500.0,0.00046,120]
[408719037,1774168250201,-352.06471348,0.00046,120]
[408719038,1774168250210,-260.4421136,0.00046,120]
[408719039,1774168250220,-910.24384981,0.00046,90]
[408719040,1774168250229,-631.92159861,0.00046,60]
[408719041,1774168250239,-1601.69777468,0.00046,30]
[408719042,1774168250248,-1990.0,0.00046027,120]
[408719043,1774168250258,-1580.929,0.00046033,30]
[408719044,1774168250267,-156.80204225,0.00046044,2]
[408719045,1774168250276,-2126.3,0.000461,30]
[408719046,1774168250285,-211.64513364,0.00046165,7]
[408719047,1774168250294,-2768.49,0.00046184,120]
[408719048,1774168250303,-500.0,0.00046192,120]
[408719049,1774168250312,-500.0,0.00046192,120]
[408719050,1774168250322,-500.0,0.00046192,120]
[408719051,1774168250331,-500.0,0.00046192,120]
[408719052,1774168250340,-500.0,0.00046192,120]
[408719053,1774168250348,-500.0,0.00046192,120]
[408719054,1774168250357,-216.0,0.00046201,2]
[408719055,1774168250366,-1990.0,0.00046301,120]
[408719056,1774168250375,-156.80204225,0.00046318,2]
[408719057,1774168250384,-150.0,0.00046326,30]
[408719058,1774168250394,-500.0,0.00046356,120]
[408719059,1774168250403,-500.0,0.00046356,120]
[408719060,1774168250414,-500.0,0.00046356,120]
[408719061,1774168250425,-744.85427424,0.00046388,30]
[408719062,1774168250434,-39769.87,0.000464,6]
[408719063,1774168250443,-11434.39,0.000464,6]
[408719064,1774168250454,-10530.06,0.000464,6]
[408719065,1774168250466,-500.0,0.000465,45]
[408719066,1774168250475,-27588.68,0.000465,6]
[408719067,1774168250484,-22091.87628843,0.000465,7]
[408719068,1774168250494,-674.92572,0.0004653,120]
[408719069,1774168250503,-908.46,0.00046575,2]
[408719070,1774168250512,-300.0,0.00046575,2]
[408719071,1774168250523,-300.0,0.00046575,2]
[408719072,1774168250532,-300.0,0.00046575,2]
[408719073,1774168250541,-300.0,0.00046575,2]
[408719074,1774168250550,-300.0,0.00046575,2]
[408719075,1774168250559,-300.0,0.00046575,2]
[408719076,1774168250569,-300.0,0.00046575,2]
[408719077,1774168250578,-300.0,0.00046575,2]
[408719078,1774168250587,-300.0,0.00046575,2]
[408719079,1774168250596,-300.0,0.00046575,2]
[408719080,1774168250605,-300.0,0.00046575,2]
[408719081,1774168250613,-300.0,0.00046575,2]
[408719082,1774168250623,-300.0,0.00046575,2]
[408719083,1774168250631,-300.0,0.00046575,2]
[408719084,1774168250764,-300.0,0.00046575,2]
[408719085,1774168250773,-300.0,0.00046575,2]
[408719086,1774168250783,-300.0,0.00046575,2]
[408719087,1774168250792,-300.0,0.00046575,2]
[408719088,1774168250801,-300.0,0.00046575,2]
[408719089,1774168250811,-300.0,0.00046575,2]
[408719090,1774168250820,-300.0,0.00046575,2]
[408719091,1774168250829,-300.0,0.00046575,2]
[408719092,1774168250839,-300.0,0.00046575,2]
[408719093,1774168250848,-300.0,0.00046575,2]
[408719094,1774168250858,-300.0,0.00046575,2]
[408719095,1774168250867,-300.0,0.00046575,2]
[408719096,1774168250877,-300.0,0.00046575,2]
[408719097,1774168250887,-300.0,0.00046575,2]
[408719098,1774168250896,-300.0,0.00046575,2]
[408719099,1774168250906,-300.0,0.00046575,2]
[408719100,1774168250915,-300.0,0.00046575,2]
[408719101,1774168250924,-300.0,0.00046575,2]
[408719102,1774168250933,-300.0,0.00046575,2]
[408719103,1774168250942,-378.47828845,0.00046575,2]
[408719104,1774168250952,-1260.96,0.00046575,2]
[408719105,1774168250961,-1260.96,0.00046575,2]
[408719106,1774168250970,-1260.96,0.00046575,2]
[408719107,1774168250979,-1260.96,0.00046575,2]
[408719108,1774168250988,-1260.96,0.00046575,2]
[408719109,1774168250998,-1260.96,0.00046575,2]
[408719110,1774168251008,-1260.96,0.00046575,2]
[408719111,1774168251017,-1260.96,0.00046575,2]
[408719112,1774168251026,-1260.96,0.00046575,2]
[408719113,1774168251036,-1260.96,0.00046575,2]
[408719114,1774168251045,-1260.96,0.00046575,2]
[408719115,1774168251054,-1260.96,0.00046575,2]
[408719116,1774168251063,-1260.96,0.00046575,2]
[408719117,1774168251072,-1260.96,0.00046575,2]
[408719118,1774168251082,-1260.96,0.00046575,2]
[408719119,1774168251091,-1260.96,0.00046575,2]
[408719120,1774168251101,-1260.96,0.00046575,2]
[408719121,1774168251111,-1260.96,0.00046575,2]
[408719122,1774168251120,-1260.96,0.00046575,2]
[408719123,1774168251129,-1260.96,0.00046575,2]
[408719124,1774168251139,-1260.96,0.00046575,2]
[408719125,1774168251148,-1260.96,0.00046575,2]
[408719126,1774168251158,-1260.96,0.00046575,2]
[408719127,1774168251167,-1261.0395146,0.00046575,2]
[408719128,1774168251177,-810.51,0.00046575,2]
[408719129,1774168251186,-810.51,0.00046575,2]
[408719130,1774168251195,-810.51,0.00046575,2]
[408719131,1774168251205,-810.51,0.00046575,2]
[408719132,1774168251214,-810.51,0.00046575,2]
[408719133,1774168251223,-810.51,0.00046575,2]
[408719134,1774168251232,-810.51,0.00046575,2]
[408719135,1774168251241,-810.51,0.00046575,2]
[408719136,1774168251250,-810.51,0.00046575,2]
[408719137,1774168251259,-810.51,0.00046575,2]
[408719138,1774168251268,-810.51,0.00046575,2]
[408719139,1774168251278,-810.51,0.00046575,2]
[408719140,1774168251289,-810.51,0.00046575,2]
[408719141,1774168251299,-810.51,0.00046575,2]
[408719142,1774168251308,-810.51,0.00046575,2]
[408719143,1774168251318,-810.51,0.00046575,2]
[408719144,1774168251328,-810.51,0.00046575,2]
[408719145,1774168251337,-810.51,0.00046575,2]
[408719146,1774168251347,-810.51,0.00046575,2]
[408719147,1774168251356,-810.51,0.00046575,2]
[408719148,1774168251366,-810.51,0.00046575,2]
[408719149,1774168251375,-810.51,0.00046575,2]
[408719150,1774168251385,-810.51,0.00046575,2]
[408719151,1774168251394,-810.51440959,0.00046575,2]
[408719152,1774168251405,-2752.59,0.00046575,2]
[408719153,1774168251418,-2752.59,0.00046575,2]
[408719154,1774168251427,-2752.59,0.00046575,2]
[408719155,1774168251436,-2752.59,0.00046575,2]
[408719156,1774168251446,-2752.59,0.00046575,2]
[408719157,1774168251455,-2752.59,0.00046575,2]
[408719158,1774168251464,-2752.59,0.00046575,2]
[408719159,1774168251474,-2752.59,0.00046575,2]
[408719160,1774168251483,-2752.59,0.00046575,2]
[408719161,1774168251492,-2752.59,0.00046575,2]
[408719162,1774168251501,-2752.59,0.00046575,2]
[408719163,1774168251510,-2752.59,0.00046575,2]
[408719164,1774168251519,-2752.59,0.00046575,2]
[408719165,1774168251529,-2752.59,0.00046575,2]
[408719166,1774168251538,-2752.59,0.00046575,2]
[408719167,1774168251547,-2752.59,0.00046575,2]
[408719168,1774168251556,-2752.59,0.00046575,2]
[408719169,1774168251566,-2752.59,0.00046575,2]
[408719170,1774168251575,-2752.59,0.00046575,2]
[408719171,1774168251584,-2752.59,0.00046575,2]
[408719172,1774168251594,-2752.59,0.00046575,2]
[408719173,1774168251603,-2752.59,0.00046575,2]
[408719174,1774168251613,-2752.59,0.00046575,2]
[408719175,1774168251622,-2752.78779834,0.00046575,2]
[408719176,1774168251634,-500.0,0.00046575,2]